[Event "Grand Prix Romania 1st Stage 2024"]
[Site "Bucuresti"]
[Date "2024.03.23"]
[Round "3.28"]
[White "Craciun, Sasha-Matei"]
[Black "Tilicheev, Viacheslav"]
[Result "0-1"]
[ECO "B33"]
[WhiteElo "2169"]
[BlackElo "2485"]
[Annotator "TA"]
[PlyCount "60"]
[EventDate "2024.03.20"]
[EventType "swiss"]
[EventCountry "ROU"]
[SourceTitle "playchess.com"]
[Source "ChessBase"]
[SourceQuality "1"]
[TimeControl "900+5"]

{[%evp 9,60,27,56,43,31,33,37,28,29,27,30,27,46,49,39,-11,-5,-32,-23,-26,-27,-50,-53,-66,-53,-123,-120,-121,-100,-143,-94,-201,-186,-220,-198,-467,-454,-746,-757,-1356,-668,-842,-446,-29989,-29990,-29994,-29984,-29984,-29985,-29985,-29986,-29983,-6414]} 1. e4 {[%emt 0:00:03]} c5 {[%emt 0:00:01]} 2. Nf3 {[%emt 0:00:02][%cal Bg1f3,Bf3d4,Bd4b5][%mdl 32]} Nc6 {[%emt 0:00:01]} 3. d4 {[%emt 0:00:01]} cxd4 {[%emt 0:00:02]} 4. Nxd4 {[%emt 0:00:02]} Nf6 {[%emt 0:00:01]} 5. Nc3 {[%emt 0:00:01]} h5 {[%emt 0:00:02]} 6. h3 {[%emt 0:01:22]} e5 {[%emt 0:00:34]} 7. Ndb5 {[%emt 0:00:04] Threatens to win with Bg5.} d6 {[%emt 0:00:02]} 8. Nd5 {[%emt 0:00:22] White is slightly better.} Nxd5 {[%emt 0:00:13]} 9. exd5 {[%emt 0:00:02]} Ne7 {[%emt 0:00:18]} 10. c4 {[%emt 0:00:01] [#] Qa4 is the strong threat.} Ng6 {[%emt 0:01:11]} 11. Bd3 {[%emt 0:01:10]} a6 {[%emt 0:00:46]} 12. Bxg6 {[%emt 0:02:13]} (12. Nc3 $14) 12... axb5 $11 {[%emt 0:01:05]} 13. Bxh5 {[%emt 0:01:06]} bxc4 {[%emt 0:00:14]} 14. Be2 {[%emt 0:00:07]} b5 {[%emt 0:00:03]} 15. Be3 {[%emt 0:00:50]} Bd7 {[%emt 0:01:01]} 16. Qd2 {[%emt 0:01:44][%cal Oa2a4]} Qh4 {[%emt 0:02:08]} 17. Bf3 {[%emt 0:01:35]} (17. g3 $15 Qe4 18. f3) 17... Be7 $17 {[%emt 0:01:04]} 18. g3 {[%emt 0:01:02]} Qf6 {[%emt 0:00:02]} 19. Bg2 {[%emt 0:00:06]} Bd8 {[%emt 0:00:02] Black is more active.} (19... Qg6 $142 20. a3 Bf5) 20. Qc1 {[%emt 0:01:01]} (20. Qc2 $17) 20... Qg6 {[%emt 0:00:33]} 21. h4 {[%emt 0:00:46]} Rxh4 {[%emt 0:00:37]} 22. O-O {[%emt 0:01:35]} (22. Rxh4 Bxh4 23. Kf1) 22... Rh8 $19 {[%emt 0:00:27]} 23. a4 {[%emt 0:00:05]} (23. Qd2 $142) 23... Qh5 {[%emt 0:00:42][%csl Gh8][%cal Rh5h2]} 24. Re1 {[%emt 0:00:10]} Bg4 {[%emt 0:02:39]} (24... Qh2+ $142 25. Kf1 Bh3 (25... Rxa4 $2 26. Rxa4 Bh3 27. Bxh3 $19) (25... bxa4 $2 26. Bf3 $19) 26. Bxh3 Qxh3+ (26... Rxh3 27. axb5 Rxa1 28. Qxa1 $15) 27. Ke2 Qg4+ (27... bxa4 28. Qxc4 Qd7 29. Rh1 $11) 28. f3 Rh2+ (28... Qxg3 $2 29. Rh1 $19) 29. Bf2 Qd4 (29... Qxg3 $2 30. Qe3 $19)) 25. f4 {[%emt 0:00:23]} Bf3 {[%emt 0:00:11] ( -> ...Qh2+)} (25... Rxa4 $2 26. Kf2 Rxa1 27. Qxa1 $19) 26. Kf2 {[%emt 0:00:44] [#]} (26. Qc2 $19 Qh2+ 27. Kf1) 26... Bxg2 {[%emt 0:00:04] Black mates.} 27. Kxg2 {[%emt 0:00:01]} e4 {[%emt 0:00:05]} ({Not} 27... bxa4 28. Qxc4 Qh3+ 29. Kf3 Qh5+ 30. Kg2 Qh3+ 31. Kf3 Qh5+ 32. Kg2 $11) 28. Qd1 {[%emt 0:00:37]} Qh2+ {[%emt 0:00:02]} 29. Kf1 {[%emt 0:00:00]} Qxg3 {[%emt 0:00:10]} 30. Bf2 {[%emt 0:00:01]} Qh3+ {[%emt 0:00:15] Weighted Error Value: White=0.91/Black=0.46.  Mistake:       	White=5     	Black=1      Inaccurate:     	White=3     	---        OK:         	White=5     	Black=12} (30... Rh1+ $142 31. Ke2 Rh2 (31... Qxf4 $2 32. Rxh1 Qf3+ 33. Ke1 $19) (31... Qf3+ $2 32. Kd2 $19) 32. Kd2 Qxf2+ 33. Re2 Ba5+ (33... Qxf4+ $2 34. Kc2 $19) 34. Kc1 Qxe2 35. Qxe2 Rxe2 36. Ra3 Re1+ 37. Kc2 b4 (37... Re2+ $2 38. Kd1 $19) 38. Rh3 b3+ 39. Rxb3 Re2+ (39... cxb3+ {is a self mate.} 40. Kxb3 Rb8+ 41. Kc2 Re2+ 42. Kc1 Rbxb2 43. f5 Bc3 44. Kd1 Re1#) 40. Kd1 Rd2+ (40... Re1+ {leads to mate.} 41. Kc2 cxb3+ 42. Kxb3 Re2 43. Ka3 Rb8 44. b4 Rxb4 45. f5 Rc4 46. Kb3 Rc3#) 41. Ke1 cxb3 42. Kf1 Rc8 43. Kg1 Rc1#) 0-1

[Event "Grand Prix Romania 1st Stage 2024"]
[Site "Bucuresti"]
[Date "2024.03.23"]
[Round "3.29"]
[White "Costachi, Mihnea"]
[Black "Dragomirescu, Angela"]
[Result "1/2-1/2"]
[ECO "C41"]
[WhiteElo "2470"]
[BlackElo "2111"]
[Annotator "TA"]
[PlyCount "160"]
[EventDate "2024.03.20"]
[EventType "swiss"]
[EventCountry "ROU"]
[SourceTitle "playchess.com"]
[Source "ChessBase"]
[SourceQuality "1"]
[TimeControl "900+5"]

{[%evp 9,160,-29,-10,-30,-37,-32,-15,-55,-47,-63,-41,-47,-53,-110,-65,-157,0,0,0,0,-10,-49,-8,-8,-16,-14,0,0,0,-53,10,-52,-60,-103,-107,-90,-83,-101,-106,-117,-37,-102,-103,-118,-110,-145,-85,-205,-82,-121,-110,-175,0,0,0,0,0,0,0,0,0,0,0,0,0,0,0,0,0,0,0,0,0,0,0,0,0,0,0,-14,-14,-26,-14,-25,-14,-29,-25,-28,0,-16,0,-22,-22,-25,0,-21,-21,-21,0,-24,-10,-22,-14,-14,0,0,8,8,8,0,0,0,0,0,0,0,0,-14,0,0,0,0,0,0,0,0,0,0,0,0,0,0,0,0,0,0,0,0,0,0,8,8,8,8,8,8,8,8,8,8,8,8,8]} 1. Nc3 {[%emt 0:00:10]} d6 {[%emt 0:00:24]} 2. d4 {[%emt 0:00:09]} e5 {[%emt 0:00:01]} 3. Nf3 {[%emt 0:00:25]} Nd7 {[%emt 0:01:00]} 4. e4 {[%emt 0:00:44]} Ngf6 {[%emt 0:00:04]} 5. g4 {[%emt 0:01:11]} Nxg4 {[%emt 0:01:28]} 6. Rg1 {[%emt 0:00:03]} Ngf6 {[%emt 0:00:01]} 7. Be3 {[%emt 0:00:26]} c6 {[%emt 0:00:12]} 8. Qd2 {[%emt 0:00:08]} b5 {[%emt 0:00:40]} 9. a3 {[%emt 0:00:57]} Bb7 {[%emt 0:00:15]} 10. Bh3 {[%emt 0:02:57]} Qc7 {[%emt 0:00:12]} 11. Rd1 {[%emt 0:01:22]} (11. O-O-O $15) 11... g6 {[%emt 0:03:12]} 12. Bg5 {[%emt 0:04:23]} (12. dxe5 $15 Nxe5 13. Nxe5 dxe5 14. Rg3) 12... Be7 {[%emt 0:00:55]} (12... h6 $17 13. Bxd7+ Nxd7) 13. Bxd7+ $11 {[%emt 0:00:53]} Nxd7 {[%emt 0:00:49]} 14. Bxe7 Kxe7 {[%emt 0:00:02]} 15. h4 {[%emt 0:00:54]} a6 {[%emt 0:00:33]} 16. h5 {[%emt 0:00:06]} exd4 {[%emt 0:00:44]} 17. Nxd4 {[%emt 0:00:27]} Rae8 {[%emt 0:01:16]} 18. Qg5+ {[%emt 0:00:38]} f6 {[%emt 0:00:04]} 19. Qg3 {[%emt 0:00:01]} (19. Qh6 $11 Reg8 20. e5 (20. hxg6 hxg6 21. Qe3 Ne5 $15) 20... Nxe5 (20... dxe5 $2 21. Nf5+ Kd8 22. Ne4 $18) 21. Nf5+ Kd8 22. Nxd6) 19... Kd8 {[%emt 0:01:07]} (19... c5 $15 20. Nde2 g5 (20... gxh5 21. Qf4 $16)) 20. Nde2 {[%emt 0:00:01]} (20. hxg6 $11 hxg6 21. Qxg6) 20... Ne5 $15 {[%emt 0:00:44]} (20... gxh5 21. Qh4 $11 (21. Rxd6 Kc8 $11) (21. Qxd6 Qxd6 22. Rxd6 h4 $15)) 21. f4 {[%emt 0:00:08]} Nc4 {[%emt 0:00:13]} 22. b3 {[%emt 0:00:05]} Nxa3 {[%emt 0:00:08]} 23. hxg6 {[%emt 0:00:06]} hxg6 {[%emt 0:00:03]} 24. Qxg6 {[%emt 0:00:02]} Rhf8 {[%emt 0:01:38]} (24... Qe7 $1 $17 {[%cal Ob5b4] And now ...b4! would win.} 25. Nd4 d5) 25. Kd2 {[%emt 0:00:07]} (25. e5 $1 $15 d5 26. Ne4 fxe5 (26... Nxc2+ $2 27. Kd2 $19) 27. Nd6 Nxc2+ 28. Kd2 exf4 29. Qg5+ (29. Nxe8 Rxe8 30. Nxf4 Qxf4+ $17) 29... Qe7 30. Nxe8 Rxe8 31. Nxf4 Qxg5 32. Rxg5) 25... b4 $17 {[%emt 0:00:05]} 26. Na4 {[%emt 0:00:02]} Nb5 {[%emt 0:00:04]} 27. Kc1 {[%emt 0:00:06] [#]} c5 {[%emt 0:00:03]} ({Black should try} 27... Kc8 $1 {Strongly threatening ...c5.} 28. Qh6 Rf7) 28. Ng3 {[%emt 0:00:13] [#]} (28. e5 $17 {was necessary.} fxe5 29. fxe5 Rxe5 30. c4 bxc3 (30... Rxe2 31. cxb5 Qe7 32. Qxd6+ Qxd6 33. Rxd6+ Kc7 34. Rdg6 $11) 31. Nexc3) 28... Nd4 {[%emt 0:00:21]} (28... c4 $1 $19 {[%cal Rc4b3]} 29. Kb2 c3+ 30. Ka2 Kc8) 29. Rxd4 {[%emt 0:00:14]} cxd4 {[%emt 0:00:03]} 30. Rd1 {[%emt 0:00:01]} Rg8 $2 {[%emt 0:00:40]} (30... Bc6 $19 {...Bxa4 would now be deadly.} 31. Nb2 Kc8 32. Qf5+ Kb8 33. Rxd4 Qb6 34. Rxd6 Rd8) 31. Qxf6+ $11 {[%emt 0:00:06]} Qe7 {[%emt 0:00:01]} (31... Kc8 $5 32. Nf5 $8 Kb8 (32... Bxe4 33. Nxd6+ Kb8 34. Rd2 $11) 33. Qxd6 Rxe4 $11) 32. Qxe7+ {[%emt 0:00:16]} Rxe7 {[%emt 0:00:02]} 33. Nf5 {[%emt 0:00:04]} Rxe4 {[%emt 0:00:02]} 34. Nxd6 {[%emt 0:00:02] A dynamic duo of knights.} Re7 {[%emt 0:00:24]} 35. Rxd4 {[%emt 0:00:01]} Kc7 {[%emt 0:00:09]} 36. Nxb7 {[%emt 0:00:13]} Kxb7 {[%emt 0:00:03]} 37. Rxb4+ {[%emt 0:00:02][%mdl 4096] Endgame. KRR-KRN} Kc7 {[%emt 0:00:18]} 38. Nc5 {[%emt 0:00:04]} Rg1+ {[%emt 0:00:04]} 39. Kb2 {[%emt 0:00:04]} a5 {[%emt 0:00:08]} 40. Rb5 {[%emt 0:00:10]} Rg2 {[%emt 0:00:06]} 41. Nd3 {[%emt 0:00:13]} Re3 {[%emt 0:00:04]} 42. Kc3 {[%emt 0:00:13]} Ree2 {[%emt 0:00:03]} 43. Rc5+ {[%emt 0:00:01]} Kb6 {[%emt 0:00:01]} 44. Kd4 {[%emt 0:00:09]} Rxc2 {[%emt 0:00:02]} 45. Rh5 {[%emt 0:00:03]} Rcd2 {[%emt 0:00:11]} 46. Rh6+ {[%emt 0:00:05]} Kb5 {[%emt 0:00:01] Threatens to win with ...Rg3.} 47. Kc3 {[%emt 0:00:02]} Rc2+ {[%emt 0:00:07]} 48. Kd4 {[%emt 0:00:01]} Rcd2 {[%emt 0:00:04] Hoping for ...Rg3.} 49. Rh5+ {[%emt 0:00:06]} Kb6 {[%emt 0:00:01]} 50. Rd5 {[%emt 0:00:01]} Rg3 {[%emt 0:00:13]} 51. Kc3 {[%emt 0:00:02]} Rgg2 {[%emt 0:00:05]} 52. Kc4 {[%emt 0:00:18]} Rc2+ {[%emt 0:00:05]} 53. Kd4 {[%emt 0:00:01]} Rcd2 {[%emt 0:00:00]} 54. Rd6+ {[%emt 0:00:11]} Kb5 {[%emt 0:00:06]} 55. f5 {[%emt 0:00:05] The position is equal.} Rg3 {[%emt 0:00:10]} 56. Ke4 {[%emt 0:00:06]} Rgg2 {[%emt 0:00:07]} 57. f6 {[%emt 0:00:03] f7 is the strong threat.} Rd1 {[%emt 0:00:04]} 58. Rd5+ {[%emt 0:00:04]} Kb6 {[%emt 0:00:02]} 59. f7 {[%emt 0:00:04]} (59. Nf4 $5 Re1+ $8 60. Kf5 $11) 59... Rf1 {[%emt 0:00:06]} 60. Ne5 {[%emt 0:00:10] aiming for Nf3.} Re2+ {[%emt 0:00:09]} 61. Kd3 {[%emt 0:00:03]} Ref2 {[%emt 0:00:02]} 62. Rd6+ {[%emt 0:00:04]} Kc5 {[%emt 0:00:05]} 63. Ra6 {[%emt 0:00:05]} Kb5 {[%emt 0:00:02]} 64. Ra7 {[%emt 0:00:02]} Rf5 {[%emt 0:00:04]} 65. Ke4 {[%emt 0:00:01]} R1f4+ {[%emt 0:00:02]} 66. Kd5 {[%emt 0:00:01]} Rf6 {[%emt 0:00:06]} 67. Rb7+ {[%emt 0:00:08]} Ka6 {[%emt 0:00:01]} 68. Re7 {[%emt 0:00:08]} Rf1 {[%emt 0:00:08]} 69. Kc5 {[%emt 0:00:12]} R1f5 {[%emt 0:00:08]} 70. Kd4 {[%emt 0:00:04]} Rf4+ {[%emt 0:00:02]} 71. Ke3 {[%emt 0:00:02]} Rf1 {[%emt 0:00:02]} 72. Kd4 {[%emt 0:00:05]} R1f4+ {[%emt 0:00:01]} 73. Kd5 {[%emt 0:00:04]} R4f5 {[%emt 0:00:02]} 74. Re6+ {[%emt 0:00:07]} Rxe6 {[%emt 0:00:01]} 75. Kxe6 {[%emt 0:00:01] KR-KN} Rf1 {[%emt 0:00:14]} (75... Rxf7 {simplifies} 76. Nxf7 Kb5 77. Nd6+ Kb4) 76. Ng4 {[%emt 0:00:11] White wants to mate with Nf6.} (76. Ng6 {keeps more tension.} a4 77. bxa4 Ka5 78. Ne7) 76... Rxf7 {[%emt 0:00:04]} 77. Kxf7 {[%emt 0:00:01]} Kb5 {[%emt 0:00:02]} 78. Ne5 {[%emt 0:00:09]} Kb4 {[%emt 0:00:30]} 79. Nc6+ {[%emt 0:00:01]} Kxb3 {[%emt 0:00:00]} 80. Nxa5+ {[%emt 0:00:01]} Kb4 {[%emt 0:00:00] Weighted Error Value: White=0.17 (very precise) /Black=0.23 (precise) .  Missed win:     	---       	Black=1      Mistake:       	White=6     	Black=5      Inaccurate:     	White=4     	Black=3      OK:         	White=23    	Black=29     Best:        	White=4     	Black=1} 1/2-1/2

[Event "Grand Prix Romania 1st Stage 2024"]
[Site "Bucuresti"]
[Date "2024.03.23"]
[Round "3.30"]
[White "Stoyanov, Tsvetan"]
[Black "Zubova, Mariya"]
[Result "1-0"]
[ECO "A40"]
[WhiteElo "2465"]
[BlackElo "2146"]
[Annotator "TA"]
[PlyCount "85"]
[EventDate "2024.03.20"]
[EventType "swiss"]
[EventCountry "ROU"]
[SourceTitle "playchess.com"]
[Source "ChessBase"]
[SourceQuality "1"]
[TimeControl "900+5"]

{[%evp 9,85,37,36,8,0,-51,-3,-47,-28,-14,-16,-63,-63,-65,-54,-106,-100,-89,-96,-156,-127,-127,-75,-113,-111,-113,-110,-146,-138,-190,-180,-220,-258,-241,-104,-100,-76,-68,-64,-50,-41,-43,-10,-27,0,0,4,-48,-55,-61,-61,-66,92,85,89,45,30,39,60,8,92,81,84,89,141,154,123,131,115,131,277,271,649,464,416,232,2567,2430]} 1. c4 {[%emt 0:00:02]} g6 {[%emt 0:00:05]} 2. Nf3 {[%emt 0:00:02]} Bg7 {[%emt 0:00:03]} 3. d4 {[%emt 0:00:02]} c5 {[%emt 0:01:10]} 4. dxc5 {[%emt 0:01:15]} Qa5+ {[%emt 0:00:28]} 5. Bd2 {[%emt 0:00:11]} Qxc5 {[%emt 0:00:06]} 6. Bc3 {[%emt 0:00:57]} Nf6 {[%emt 0:00:59]} 7. Nbd2 {[%emt 0:00:01]} (7. e3 $11) 7... O-O {[%emt 0:00:07]} (7... Ng4 $15 8. e3 Bxc3 9. bxc3 Nf6) 8. g3 {[%emt 0:00:46] The position is equal.} Nc6 {[%emt 0:03:26]} 9. Rc1 {[%emt 0:01:09]} e5 $40 {[%emt 0:01:21][%mdl 128] Black mounts an attack.} 10. Nb3 {[%emt 0:04:40]} (10. Bg2 $11) 10... Qe7 $15 {[%emt 0:00:51] Threatens to win with ...Rd8.} 11. Bg2 {[%emt 0:00:21]} Rd8 {[%emt 0:02:33] ...d5 would now be deadly.} 12. O-O {[%emt 0:03:25]} (12. Ng5 $15) 12... d5 $17 {[%emt 0:00:12]} 13. cxd5 {[%emt 0:00:03]} Nxd5 {[%emt 0:00:04]} 14. Nfd2 {[%emt 0:00:01]} (14. Qc2 $142) 14... Nxc3 {[%emt 0:00:26]} 15. bxc3 {[%emt 0:00:01]} Be6 {[%emt 0:00:26]} (15... Bf5 $142 16. e3 Bd3) 16. Qc2 {[%emt 0:00:14]} Rac8 {[%emt 0:00:38]} 17. Qb2 {[%emt 0:00:04]} f5 {[%emt 0:00:29][%cal Bf7f5,Bf5f4][%mdl 32]} 18. e4 {[%emt 0:00:21]} f4 {[%emt 0:00:31]} 19. c4 {[%emt 0:00:34]} (19. Nf3 $17 {was necessary.}) 19... Bh6 $19 {[%emt 0:00:48] A strong pair of Bishops.} 20. Rc3 {[%emt 0:00:53]} a5 {[%emt 0:00:56] White must now prevent ...a4.} 21. Nf3 {[%emt 0:00:33]} Bf7 {[%emt 0:00:18]} (21... g5 $19 {has better winning chances. ...g4 is the strong threat.} 22. h3 fxg3 23. fxg3 a4) 22. c5 $17 {[%emt 0:00:42]} fxg3 {[%emt 0:00:09]} 23. hxg3 {[%emt 0:00:05]} a4 {[%emt 0:00:08]} 24. Nc1 {[%emt 0:00:04]} Nd4 {[%emt 0:00:05]} 25. Nd3 {[%emt 0:00:07]} Nxf3+ {[%emt 0:00:24]} 26. Bxf3 {[%emt 0:00:01]} Rc6 {[%emt 0:00:05]} 27. Rb1 {[%emt 0:00:11]} Rc7 {[%emt 0:00:10]} 28. Qb5 {[%emt 0:00:07]} (28. Qc2 $11) 28... Bxa2 $15 {[%emt 0:00:08]} 29. Ra1 {[%emt 0:00:13]} Bb3 {[%emt 0:00:01]} 30. Bd1 {[%emt 0:00:03]} Bd2 $2 {[%emt 0:00:04] [#]} (30... Bxd1 $15 31. Rxd1 Qe8 32. Qxe8+ Rxe8) 31. Bxb3+ $16 {[%emt 0:00:01]} axb3 {[%emt 0:00:02]} 32. Qxb3+ {[%emt 0:00:20]} Kh8 {[%emt 0:00:05]} 33. Rc2 {[%emt 0:00:00]} Bg5 {[%emt 0:00:02]} 34. Qc3 {[%emt 0:00:08]} ({White should play} 34. Nb4 $14) 34... Rd4 {[%emt 0:00:06] [#]} (34... Rcd7 $11 {keeps the balance.} 35. Nb2 (35. Nxe5 Bf6 $17) 35... Rd4) 35. Ra8+ $1 {[%emt 0:00:07]} Kg7 {[%emt 0:00:01]} 36. Qb3 {[%emt 0:00:05] Prevents Qe6} Rd8 {[%emt 0:00:07] Prevents Qg8+.} ({Black should try} 36... Qf7 37. Qxf7+ Kxf7 38. Nxe5+ Kg7) 37. Rxd8 {[%emt 0:00:04]} Qxd8 {[%emt 0:00:01]} 38. Nxe5 {[%emt 0:00:01]} Qd1+ {[%emt 0:00:03]} 39. Kg2 {[%emt 0:00:01] White is more active.} Qd4 {[%emt 0:00:04]} (39... Re7 $16) 40. Qd5 $18 {[%emt 0:00:14]} Qa4 {[%emt 0:00:09]} (40... Qxd5 41. exd5 Be7) 41. Rc4 {[%emt 0:00:02]} Qe8 {[%emt 0:00:03]} 42. Ng4 {[%emt 0:00:11]} (42. Rb4 $142 Qe7 43. Rb5) 42... Rf7 {[%emt 0:00:03]} (42... h5 43. Qxg5 hxg4) 43. Qxg5 {[%emt 0:00:03] Never resign too early!   Weighted Error Value: White=0.36/Black=0.38.  Mistake:       	White=7     	Black=9      Inaccurate:     	White=4     	Black=2      OK:         	White=9     	Black=10     Best:        	White=8     	Black=5      Strong:       	White=1     	---} 1-0

[Event "Grand Prix Romania 1st Stage 2024"]
[Site "Bucuresti"]
[Date "2024.03.23"]
[Round "3.31"]
[White "Stoleriu, George"]
[Black "Zubcu, Vlad-George"]
[Result "0-1"]
[ECO "B21"]
[WhiteElo "2391"]
[BlackElo "2181"]
[Annotator "RC"]
[PlyCount "74"]
[EventDate "2024.03.20"]
[EventType "swiss"]
[EventCountry "ROU"]
[SourceTitle "playchess.com"]
[Source "ChessBase"]
[SourceQuality "1"]
[TimeControl "900+5"]

1. e4 {[%emt 0:00:02]} c5 {[%emt 0:00:01]} 2. f4 {[%emt 0:01:02]} a6 {[%emt 0:01:18]} 3. Nf3 {[%emt 0:00:14]} Nc6 {[%emt 0:00:07]} 4. d3 {[%emt 0:00:15]} g6 {[%emt 0:00:20]} 5. g3 {[%emt 0:00:04]} Bg7 {[%emt 0:00:02]} 6. Bg2 {[%emt 0:00:01]} d6 {[%emt 0:00:17]} 7. c3 {[%emt 0:00:15]} Nf6 {[%emt 0:00:11]} 8. O-O {[%emt 0:00:03]} O-O {[%emt 0:00:38]} 9. Kh1 {[%emt 0:00:34]} Rb8 {[%emt 0:00:39]} 10. Qc2 {[%emt 0:00:36]} b5 {[%emt 0:00:20]} 11. Be3 {[%emt 0:00:23]} Bb7 {[%emt 0:00:25]} 12. Nbd2 {[%emt 0:00:02]} b4 {[%emt 0:00:20]} 13. Nc4 {[%emt 0:00:25]} Na5 {[%emt 0:00:55]} 14. Nxa5 {[%emt 0:01:44]} Qxa5 {[%emt 0:00:02]} 15. c4 {[%emt 0:00:01]} Qc7 {[%emt 0:01:09]} 16. h3 {[%emt 0:00:19]} Nd7 {[%emt 0:01:44]} 17. g4 {[%emt 0:00:08]} Rbe8 {[%emt 0:01:41]} 18. Rae1 {[%emt 0:01:10]} e6 {[%emt 0:00:45]} 19. Bc1 {[%emt 0:01:34]} Nb8 {[%emt 0:01:43]} 20. Qf2 {[%emt 0:01:58]} Nc6 {[%emt 0:00:11]} 21. Qh4 {[%emt 0:02:02]} Qd8 {[%emt 0:00:08]} 22. Qg3 {[%emt 0:00:12]} Nd4 {[%emt 0:01:29]} 23. Nxd4 {[%emt 0:00:04]} Bxd4 {[%emt 0:00:06]} 24. f5 {[%emt 0:00:03]} exf5 {[%emt 0:00:08]} 25. gxf5 {[%emt 0:00:09]} Kh8 {[%emt 0:00:58]} 26. Qf3 {[%emt 0:02:05]} Qf6 {[%emt 0:00:28]} 27. b3 {[%emt 0:00:35]} Bc8 {[%emt 0:00:35]} 28. Bh6 {[%emt 0:00:16]} Rg8 {[%emt 0:00:17]} 29. fxg6 {[%emt 0:00:05]} Qxg6 {[%emt 0:00:12]} 30. Bf4 {[%emt 0:00:49]} Rg7 {[%emt 0:00:07]} 31. Re2 {[%emt 0:00:17]} Reg8 {[%emt 0:00:08]} 32. Be3 {[%emt 0:00:05]} Be5 {[%emt 0:00:02]} 33. Bg1 {[%emt 0:00:05]} Qh6 {[%emt 0:00:13]} 34. Bh2 {[%emt 0:00:09]} Bxh2 35. Kxh2 {[%emt 0:00:01]} Qh4 {[%emt 0:00:14]} 36. Qf4 {[%emt 0:00:07]} Rxg2+ {[%emt 0:00:02]} 37. Rxg2 {[%emt 0:00:10]} Qxh3+ {[%emt 0:00:01]} 0-1

[Event "Grand Prix Romania 1st Stage 2024"]
[Site "Bucuresti"]
[Date "2024.03.23"]
[Round "3.32"]
[White "Gulie, Cosmin"]
[Black "Vedmediuc, Serghei"]
[Result "1-0"]
[ECO "B22"]
[WhiteElo "1987"]
[BlackElo "2452"]
[Annotator "TA"]
[PlyCount "87"]
[EventDate "2024.03.20"]
[EventType "swiss"]
[EventCountry "ROU"]
[SourceTitle "playchess.com"]
[Source "ChessBase"]
[SourceQuality "1"]
[TimeControl "900+5"]

{[%evp 12,87,33,0,4,0,11,10,19,14,16,-24,-22,-30,-19,-20,-18,-22,-8,-10,-8,-10,-8,-6,13,-6,-7,-6,0,-36,-33,-41,-39,-50,0,0,0,0,0,0,42,37,34,35,56,53,68,0,40,48,37,12,37,37,89,90,217,187,220,136,210,222,217,219,282,275,281,281,255,279,263,210,216,145,246,242,829,806]} 1. e4 {[%emt 0:00:03]} c5 {[%emt 0:00:02]} 2. c3 {[%emt 0:00:07]} e6 {[%emt 0:00:08]} 3. d4 {[%emt 0:00:04]} d5 {[%emt 0:00:02]} 4. exd5 {[%emt 0:00:03]} exd5 {[%emt 0:00:02]} 5. Nf3 {[%emt 0:00:04]} Nc6 {[%emt 0:00:04]} 6. Bb5 {[%emt 0:00:14]} Bd6 {[%emt 0:00:13]} 7. Be3 {[%emt 0:00:02]} cxd4 {[%emt 0:00:14]} 8. Nxd4 {[%emt 0:00:02]} Bd7 {[%emt 0:00:50]} 9. Nd2 {[%emt 0:00:27]} Nf6 {[%emt 0:00:10] The position is equal.} 10. h3 {[%emt 0:00:50]} O-O {[%emt 0:00:23]} 11. Bd3 {[%emt 0:00:24]} Nxd4 {[%emt 0:01:28]} 12. cxd4 {[%emt 0:00:13]} Qb6 {[%emt 0:00:37]} 13. Qb3 {[%emt 0:00:24]} Qxb3 {[%emt 0:00:02]} 14. Nxb3 {[%emt 0:00:04]} Bb4+ {[%emt 0:00:02]} 15. Nd2 {[%emt 0:00:23]} Rfe8 {[%emt 0:00:02]} 16. a3 {[%emt 0:00:16]} Ba5 {[%emt 0:00:42]} 17. b4 {[%emt 0:00:11]} Bb6 {[%emt 0:00:02]} 18. O-O {[%emt 0:00:09]} Rac8 {[%emt 0:00:51]} 19. Rac1 {[%emt 0:00:04] Prevents Rc3} Ba4 {[%emt 0:00:22] Against Nb3} 20. Nf3 {[%emt 0:00:32]} Ne4 {[%emt 0:00:20]} 21. Rxc8 {[%emt 0:03:18]} Rxc8 {[%emt 0:00:02]} 22. Rc1 {[%emt 0:00:01]} Re8 {[%emt 0:00:34]} (22... Rxc1+ $15 23. Bxc1 Nd6) 23. Bxe4 $11 {[%emt 0:00:22]} dxe4 {[%emt 0:00:22]} 24. Nd2 {[%emt 0:00:03]} Bc6 {[%emt 0:04:58]} 25. Nc4 {[%emt 0:00:02][%cal Ob4b5]} Bd8 {[%emt 0:00:01] [#]} 26. b5 $1 {[%emt 0:00:47]} Bd5 {[%emt 0:00:11]} (26... Bxb5 $2 {too greedy.} 27. Nd6 Be7 28. Nxb5 $18) 27. Nd6 {[%emt 0:00:26]} Re6 {[%emt 0:00:28]} 28. Nf5 {[%emt 0:00:22] Strongly threatening Rc8.} Re8 $1 {[%emt 0:01:54]} 29. Nd6 {[%emt 0:00:02] White is more active.} ({Better is} 29. Rc5 $14 Be6 30. Nd6) 29... Re7 {[%emt 0:00:21]} 30. Rc5 {[%emt 0:00:09]} Be6 {[%emt 0:00:04]} 31. Nxe4 {[%emt 0:00:18]} (31. d5 $5 b6 $8 32. Nc8 bxc5 33. Nxe7+ Bxe7 34. dxe6 $16) 31... f6 {[%emt 0:00:27]} 32. d5 $36 {[%emt 0:00:38][%mdl 2048] Black is under pressure.} Bd7 {[%emt 0:00:04]} (32... b6 $14 33. Rc6 Bd7) 33. Nd6 $16 {[%emt 0:00:35]} b6 {[%emt 0:00:11] This move loses the game for Black.} (33... Re5 $16) 34. Rc3 {[%emt 0:00:15]} Kf8 {[%emt 0:00:31]} 35. a4 {[%emt 0:01:16]} Re5 {[%emt 0:00:03]} (35... Be8 $16 {was necessary.} 36. Bd2 Bf7) 36. Nb7 $18 {[%emt 0:00:08]} Ke8 {[%emt 0:00:02]} 37. Bf4 $1 {[%emt 0:00:52]} Rxd5 {[%emt 0:00:08] [#]} 38. Re3+ $1 {[%emt 0:00:02]} Be7 {[%emt 0:00:17] [#]} 39. Bd6 $1 {[%emt 0:00:01]} Rxd6 {[%emt 0:00:05]} 40. Nxd6+ {[%emt 0:00:02]} Kd8 {[%emt 0:00:02]} 41. Nc4 {[%emt 0:00:15]} Bf5 {[%emt 0:00:06]} 42. a5 {[%emt 0:00:26]} bxa5 {[%emt 0:00:04]} (42... Bc5 $16) 43. Nxa5 {[%emt 0:00:01] And now Nc6+ would win.} Bc5 $2 {[%emt 0:00:05]} (43... Kd7 44. Re1 Bg6) 44. Nb7+ {[%emt 0:00:04] Weighted Error Value: White=0.14 (very precise) /Black=0.22 (precise) .  Mistake:       	White=1     	Black=6      Inaccurate:     	White=4     	Black=2      OK:         	White=16    	Black=14     Best:        	White=3     	---        Strong:       	White=2     	Black=1} 1-0